Cogmind - Beta 14 @@@ ROGUE MODE // 2024.11.29 @ 23:52:25 Player: Sam Result: Destroyed by G-47 Trooper with Particle Gun Performance ------------- Evolutions (0) 0 Regions Visited (1) 200 Robots Destroyed (23) 115 Value Destroyed (408) 408 Prototype IDs (0) 0 Alien Tech Used (0) 0 Bonus (0) 0 TOTAL SCORE: 723 Bonus ------- None Cogmind --------- Core Integrity 0/250 Matter 285/300 Energy 100/100 System Corruption 0% Temperature Cool (9) Movement Core (450) Ox8 Location -10/Materials Parts ------- > --- POWER (1) -------- (None) > --- PROPULSION (2) --- (None) > --- UTILITY (2) ------ Small Storage Unit Large Storage Unit > --- WEAPON (2) ------- (None) > --- INVENTORY (15) --- Compact Wheel Cooling System Seismic Detector Utility Shielding Utility Shielding Light Assault Rifle Datajack Peak State ------------ > --- POWER ------------ Ion Engine > --- PROPULSION ------- Light Treads Light Treads > --- UTILITY ---------- Small Storage Unit Large Storage Unit > --- WEAPON ----------- Particle Gun Light Assault Rifle > --- INVENTORY -------- Compact Wheel Cooling System Seismic Detector Grenade Launcher [Rating: 8] Favorites ----------- Power Ion Engine Engine Ion Engine Propulsion Light Treads Treads Light Treads Leg Aluminum Leg Utility Small Storage Unit Storage Small Storage Unit Weapon Grenade Launcher Energy Gun EM Pulse Gun Ballistic Gun Light Assault Rifle Launcher Grenade Launcher Special Melee Weapon Datajack Build | -11 -10 ------- Run | Yrd Mat Slots Evolved . | . . Power . | . . Propulsion . | . . Utility . | . . Weapon . | . . Parts Attached 16 | 6 10 Power 1 | 1 . Engine 1 | 1 . Core . | . . Reactor . | . . Propulsion 3 | 2 1 Treads 2 | 2 . Leg 1 | . 1 Wheel . | . . Hover . | . . Flight . | . . Utility 2 | 1 1 Device . | . . Storage 2 | 1 1 Processor . | . . Hackware . | . . Protection . | . . Artifact . | . . Weapon 10 | 2 8 Energy Gun 4 | 2 2 Energy Cannon . | . . Ballistic Gun 2 | . 2 Ballistic Cannon . | . . Launcher 2 | . 2 Special Weapon . | . . Impact Weapon . | . . Slashing Weapon . | . . Piercing Weapon . | . . Special Melee Weapon 2 | . 2 Unidentified Prototypes . | . . Parts Lost 9 | . 9 Power 1 | . 1 Propulsion 3 | . 3 Utility . | . . Weapon 5 | . 5 Highest Loss Streak 3 | . 3 To Critical Strikes . | . . Average Slot Usage (%) 84 | . 84 Engine 10 | . 10 Treads 8 | . 8 Leg 9 | . 9 Storage 26 | . 26 Energy Gun 7 | . 7 Ballistic Gun 2 | . 2 Launcher 9 | . 9 Special Melee Weapon 7 | . 7 Peak Build Rating 8 | 6 8 Average Rating 6 | 5 6 On Entrance 3 | . 6 Naked Turns . | . . Heaviest Build 36 | 14 36 Greatest Support 40 | 40 40 Greatest Overweight (x) 11 | . 11 Average Overweight (x) 1 | . 1 Largest Inventory Capacity 15 | 8 15 Average Capacity 13 | 7 14 Most Carried 7 | 1 7 Average Carried 4 | . 4 Final Capacity 15 | 8 15 Final Carried 7 | 1 7 Class Distribution -------------------- 100% | Mutant Dominant Class ---------------- Mutant | -10/Materials Resources | -11 -10 ----------- Run | Yrd Mat Matter Collected 518 | 176 342 Remotely . | . . Salvage Created 475 | . 475 Parts 39 | . 39 Haulers Intercepted . | . . Recyclers Shooed . | . . Parts Field Recycled . | . . Retrieved Matter . | . . Parts Self-Destructed . | . . Prevented . | . . Kills | -11 -10 ------- Run | Yrd Mat Combat Hostiles Destroyed 15 | . 15 Guns 11 | . 11 AOE 4 | . 4 Classes Destroyed 7 | . 7 Worker 4 | . 4 Builder 1 | . 1 Tunneler 1 | . 1 Recycler 1 | . 1 Operator 1 | . 1 Swarmer 9 | . 9 Grunt 6 | . 6 Best Kill Streak 4 | . 4 Combat Bots Only 4 | . 4 Max Kills in Single Turn 3 | . 3 Gunslinging . | . . Exploded 2 | . 2 Melee . | . . Uniques/NPCs Destroyed . | . . Combat | -11 -10 -------- Run | Yrd Mat Hostile Shots Fired 124 | . 124 Missed 25 | . 25 Damage Taken 1119 | . 1119 Core 262 | . 262 Absorbed by Shields . | . . Core Remaining (%) 100 | 100 . Volleys Fired 62 | . 62 Largest 2 | . 2 Hottest 95 | . 95 Shots Fired 97 | . 97 Gun 79 | . 79 Cannon . | . . Launcher 18 | . 18 Special . | . . Kinetic 30 | . 30 Thermal 21 | . 21 Explosive 18 | . 18 Electromagnetic 28 | . 28 Robot Hit Streak 6 | . 6 Robot Miss Streak 6 | . 6 Penetration Max . | . . Secondary Targets 2 | . 2 Max Gunslinging Chain 1 | . 1 Shots Hit Robots 67 | . 67 Core Hits 34 | . 34 Critical Kills . | . . Critical Parts Destroyed . | . . Critical Strikes 1 | . 1 Corrupt 1 | . 1 Melee Attacks 22 | . 22 Impact . | . . Slashing . | . . Piercing . | . . Sneak Attacks 20 | . 20 Combat Hostiles . | . . Follow-up Attacks . | . . Damage Inflicted 1329 | . 1329 Guns 507 | . 507 Cannons . | . . Explosions 821 | . 821 Melee . | . . Ramming 1 | . 1 Kinetic 135 | . 135 Thermal 224 | . 224 Explosive 737 | . 737 Electromagnetic 232 | . 232 Impact . | . . Slashing . | . . Piercing . | . . Highest Corruption . | . . Average Corruption . | . . Corruption Purged . | . . Corruption Blocked . | . . Overload Shots . | . . Overflow Damage 34 | . 34 Projectiles . | . . Explosions 34 | . 34 Melee . | . . Knockbacks . | . . Impact . | . . Kinetic . | . . Secondary . | . . Self-Inflicted Damage 143 | . 143 Shots 6 | . 6 Rammed 1 | . 1 Targets Rammed 2 | . 2 Kicked . | . . Crushed 1 | . 1 Highest Temperature 368 | . 368 Average Temperature 111 | . 111 Received Heat Transfer 294 | . 294 Siege Activations . | . . Robots Corrupted . | . . Combat Hostiles . | . . Parts Fried . | . . Impact Corruptions . | . . Robots Melted . | . . Combat Hostiles . | . . Parts Melted . | . . Heat Transferred 383 | . 383 Parts Sabotaged . | . . Parts Stolen . | . . Parts Stripped . | . . Power Chain Reactions 1 | . 1 Alert | -11 -10 ------- Run | Yrd Mat Peak Influence 297 | . 297 Initial . | . . Average 139 | . 148 Maximum Alert Level 1 | . 1 Low Security (%) 65 | 100 63 Level 1 34 | . 36 Level 2 . | . . Level 3 . | . . Level 4 . | . . Level 5 . | . . High Security . | . . Max Security . | . . Squads Dispatched 1 | . 1 Investigation . | . . Extermination . | . . Reinforcement 1 | . 1 Assault . | . . Garrison . | . . Intercept . | . . Searches Triggered . | . . Construction Impeded . | . . Haulers Reinforced . | . . Active Scanning Responses . | . . Cargo Convoy Interrupts . | . . Stealth | -11 -10 --------- Run | Yrd Mat Distress Signals 5 | . 5 Communications Jammed . | . . Distress Signals . | . . Times Spotted 45 | . 45 Peak Tracking Total 6 | . 6 Tactical Retreats 1 | . 1 Traps | -11 -10 ------- Run | Yrd Mat Traps Triggered . | . . Indirectly . | . . Trap Hack Attempts . | . . Triggered . | . . Disarmed . | . . Reprogrammed . | . . Reused . | . . Traps Extracted . | . . Installed . | . . Triggered . | . . Machines | -11 -10 ---------- Run | Yrd Mat Machines Disabled 5 | . 5 Max in Single Turn 1 | . 1 Machines Repaired . | . . Machines Dismantled . | . . Machines Sabotaged . | . . Overloaded Fab Kills . | . . Hacking | -11 -10 --------- Run | Yrd Mat Machines Accessed 3 | . 3 Terminals 2 | . 2 Fabricators . | . . Repair Stations 1 | . 1 Recycling Units . | . . Scanalyzers . | . . Garrison Access . | . . Total Hacks 7 | . 7 Successful 2 | . 2 Failed 5 | . 5 Catastrophic . | . . Database Lockouts . | . . Manual . | . . Terminals 6 | . 6 Fabricators . | . . Repair Stations 1 | . 1 Recycling Units . | . . Scanalyzers . | . . Garrison Access . | . . Terminal Hacks 2 | . 2 Maintenance Status 1 | . 1 Hauler Manifests 1 | . 1 Fabricator Hacks . | . . Repair Station Hacks . | . . Recycling Unit Hacks . | . . Scanalyzer . | . . Garrison Access Hacks . | . . Unauthorized Hacks . | . . Terminals . | . . Fabricators . | . . Repair Stations . | . . Recycling Units . | . . Scanalyzers . | . . Garrison Access . | . . Data Cores Recovered . | . . Used . | . . Hacking Detections 2 | . 2 Full Trace Events . | . . Feedback Events . | . . Feedback Blocked . | . . Robot Schematics Acquired . | . . Robots Built . | . . Authchips . | . . Time . | . . Total Robot Build Rating . | . . Part Schematics Acquired . | . . Parts Built . | . . Authchips . | . . Time . | . . Total Part Build Rating . | . . Parts Repaired . | . . Time . | . . Parts Recycled . | . . Recycled Matter . | . . Retrieved Matter . | . . Retrieved Components . | . . Parts Scanalyzed . | . . Part Schematics Acquired . | . . Parts Damaged . | . . Bothacking | -11 -10 ------------ Run | Yrd Mat Used RIF Installer . | . . Robots Hacked 10 | . 10 Non-combat 9 | . 9 Combat 1 | . 1 Robot Hacks Applied 17 | . 17 parse_system 4 | . 4 no_distress 12 | . 12 find_recycling 1 | . 1 Relay Couplers Released . | . . Fabnet Peak Effective % . | . . Robots Rewired . | . . Allies Hacked . | . . Hacks Repelled . | . . Allies | -11 -10 -------- Run | Yrd Mat Total Allies . | . . Largest Group . | . . Highest-Rated Group . | . . Highest-Rated Ally . | . . Total Orders . | . . Ally Attacks . | . . Total Damage . | . . Kills . | . . Allies Corrupted . | . . Allies Melted . | . . Intel | -11 -10 ------- Run | Yrd Mat Robot Analysis Total . | . . Derelict Logs Recovered . | . . Drone Launches . | . . Drone Recoveries . | . . Exploration | -11 -10 ------------- Run | Yrd Mat Turns Passed 4162 | 273 3889 Spaces Moved 1494 | 43 1451 Core 5 | 3 2 Treads 635 | 40 595 Legs 854 | . 854 Wheels . | . . Hover . | . . Flight . | . . Fastest Speed 50 | 50 160 Average Speed 240 | 152 243 Slowest Speed 600 | 160 600 Overloaded Moves . | . . Propulsion Burnouts . | . . Robots Hopped . | . . Cave-ins Triggered . | . . Exploration Rate (%) 49 | 4 95 Regions Visited 1 Branch Regions . Pre-discovered Areas . | . . Known Exits Taken . | . . Unknown Exits Taken 1 | 1 . Scrap Searched . | . . Spaces Dug 12 | . 12 Terrain Destroyed 149 | . 149 Melee . | . . Projectile . | . . AOE 149 | . 149 Terrain Rammed . | . . Walls Destroyed . | . . Machines Disabled . | . . Actions | -11 -10 --------- Run | Yrd Mat Total 1954 | 248 1706 Wait 349 | 199 150 Move 1493 | 42 1451 Hop . | . . Pick Up 9 | 1 8 Fast Attach 10 | 6 4 Attach 1 | . 1 Detach . | . . Swap 5 | . 5 Drop 1 | . 1 Fire 62 | . 62 Melee 22 | . 22 Ram . | . . Kick . | . . Crush 2 | . 2 Escape Stasis . | . . Rewire . | . . Trap . | . . Miscellaneous . | . . Route ------- -11/Scrapyard -10/Materials (discovered 4 exits: [*Mat x2] / [*Min] / [*Sub]) History --------- Turn | Location | Event 6 | -11/Scrapyard | Discovered new exit (range 15) 274 | -11/Scrapyard | Entered Materials 313 | -10/Materials | Build established: Mutant 1429 | -10/Materials | Core integrity fell below 50% 1815 | -10/Materials | Discovered new exit (range 12) 1944 | -10/Materials | Discovered new exit (range 11) 2701 | -10/Materials | Discovered new exit (range 5) 2843 | -10/Materials | Discovered new exit (range 8) 4047 | -10/Materials | Core integrity fell below 20% 4163 | -10/Materials | Destroyed by G-47 Trooper with Particle Gun Last Messages --------------- K-01 Serf collects debris. U-05 Engineer builds a Wall. K-01 Serf collects debris. U-05 Engineer builds a Wall. Sneak attack on R-06 Scavenger. Jacked R-06 Scavenger... >>find_recycling Pinpointed nearest Recycling Unit: (30,38) (already known). Jacked G-47 Trooper... >>parse_system Reading system data... Aluminum Leg destroyed. Destroyed Aluminum Leg. Grenade Launcher destroyed. Destroyed Grenade Launcher. T-07 Excavator destroyed. K-01 Serf destroyed. U-05 Engineer lays Concrete. Datajack destroyed. Map ----- +----------------------------------------------------+ | # """"" ##########????# ^ | | + """"" # #???## #### | | #### # !! #???# """# | | #??# # #???# "# | | % #??###+##### # ##### !"# | | #??# ## + """## < ""# | | #####??# ## # Y"## |"# " | | ???????# ## # """## "# | | ???????# """ ## # ##### """# " | | ???????# """ ## # #???## #### "" | | ???????# """ ## ##########????# "" | | ???????######### #?????????????# " | | ???????????????# ###########???# | | ?????########### # #???# | | ?????# # # #???################ | | ?????# # # #????????# # | | ?????# """ """ # # """ """ #????????# """ # | | ?????# """ """ # + """ """ #????????# "" """ /% | | ?????# """ """ # # """ """ #????????# "" """ # | | ?????# """ """ + # #????????# "T ## | | ?????# # # """T""" #????????# "" ## | | ?????# # ###########???###### "" ## | | ?????########### ##########?#### ## = ## | | ????????# =####### # ############ | | ????????# % ! *%**+ | | ????????# u @######### ############ | | ????????# #####+##### g # ### ##????#####?# | | ????????# # ## g ############???????????# | | ????????# # # !% k =#######?????????# | | ????????# # # #| # ########### | | ????????##### """ # # = # | | ????????????# """ # # / | | ????????????# """ " # # | | ????????????# " " # # ##########+ | | ????????????# " # ###+########## | | ????????????# " # # ## | | ????????????#########" ########### ## "" | | ????????????????????### ####??# ## "" | | ??????????????????????######?????# ## "" | | ?????????????????????????????????# ## | | ?????????????????????????????????# ##### | | ?????????????????????????????????#<###########???? | | ?????????????????????????????????##??????????????? | | | | | | | | | | | | | | | +----------------------------------------------------+ Best States ------------- Heat Dissipation 25 Energy Generation 10 Energy Capacity 250 Matter Stores 300 Matter Capacity 300 Sight Range 16 Terrain Scan Density 10 Evasion (%) 40 Recoil Reduction 2 Item Schematics ----------------- None Robot Schematics ------------------ None Fabricated ------------ Nothing Alien Tech Used ----------------- None Achievements -------------- None Challenges ------------ None Game ------ Seed HardcellImpactStripper Manual? 0 Play Time 00:23:00 Cumulative 6.2 hours Start 2024.11.29 @ 23:30:33 End 2024.11.29 @ 23:52:25 Sessions 1 Manual Loads 0 Difficulty Rogue Special Mode None Game No. 17 Rogue 16 Adventurer 1 Explorer 0 Win Type - Total 0 Types 0/0/0/0/0/0/0/0/0 Lore% 9 Gallery% 12 Achievement% 12 Wizard Run 0 Options --------- Layout 1 ASCII 0 Keyboard 0 Movement Numpad Keybinds 0 Fullscreen 1 Font 24/Smallcaps Map View 50x35 Zoom Use 0% Tactical HUD 0 Map Filters NONE Filters NONE Steam 1 RUN: 4cec2682-eb50-44b8-adb6-7f8c43db4fed